bitfinex/quotes_ETHUSD_20230701
["timestamp","ask_amount","ask_price","bid_price","bid_amount"]
[1688201987258,10.4346,1916.7,1916.4,12.17387707]
[1688201987581,13.04325,1916.7,1916.5,1.21738771]
[1688201988081,5.2173,1916.7,1916.5,1.21738771]
[1688201988281,10.4346,1916.7,1916.5,1.21738771]
[1688201988450,10.4346,1916.7,1916.5,5.2178]
[1688201989081,5.21726,1916.8,1916.5,10.43564]
[1688201989300,4.33575,1917.0,1916.5,10.43564]
[1688201989301,10.43387,1916.9,1916.5,10.43564]
[1688201989466,5.2172,1916.8,1916.5,10.43564]
[1688201990895,10.4344,1916.8,1916.5,10.43564]
[1688201991074,10.4344,1916.8,1916.5,11.876308]
[1688201991282,10.4344,1916.8,1916.5,6.658468]
[1688201992350,10.2844,1916.8,1916.5,11.876308]
[1688201992551,5.0672,1916.8,1916.5,11.876308]
[1688201992891,10.2844,1916.8,1916.5,11.876308]
[1688201993194,10.43386,1916.9,1916.6,6.4050808]
[1688201995492,5.21691,1916.9,1916.6,6.4050808]
[1688201995796,10.43386,1916.9,1916.6,6.4050808]
[1688201995992,10.43386,1916.9,1916.6,11.6226508]
[1688201996570,5.21658,1917.0,1916.7,0.01647328]
[1688201996883,5.2168,1916.9,1916.7,11.87555369]
[1688201998584,10.43323,1917.0,1916.7,11.87555369]
[1688201999992,13.04147,1917.0,1916.7,1.44126369]
[1688202000191,13.04147,1917.0,1916.7,0.01647328]
[1688202003493,13.04147,1917.0,1916.6,5.21746]
[1688202004288,13.04147,1917.0,1916.5,7.18157]
[1688202004470,13.04147,1917.0,1916.4,0.41633374]
[1688202004681,0.48,1916.9,1916.2,0.13238637]
[1688202004881,13.0433,1916.7,1916.1,10.1623]
[1688202005079,13.0433,1916.7,1916.1,15.38111]
[1688202005298,13.0433,1916.7,1916.1,10.1623]
[1688202005497,13.0433,1916.7,1916.1,15.38123]
[1688202005684,13.0433,1916.7,1916.2,1.538123]
[1688202005872,13.0433,1916.7,1916.2,6.756753]
[1688202006371,13.0433,1916.7,1916.2,11.975413]
[1688202007073,13.0433,1916.7,1916.2,1.55460058]
[1688202007277,13.0433,1916.7,1916.2,6.77322058]
[1688202007494,13.0433,1916.7,1916.2,1.55460058]
[1688202007810,14.51664,1916.7,1916.2,0.01647758]
[1688202008320,14.51664,1916.7,1916.2,5.23508758]
[1688202008538,14.33147641,1916.7,1916.2,5.23508758]
[1688202008891,12.85813641,1916.7,1916.2,10.45374758]
[1688202009091,12.85813641,1916.7,1916.2,13.06307758]
[1688202010806,12.85813641,1916.7,1916.2,10.45374758]
[1688202023634,12.85813641,1916.7,1916.2,10.87524814]
[1688202028448,12.85813641,1916.7,1916.2,5.65658814]
[1688202028665,12.85813641,1916.7,1916.3,0.56565881]
[1688202028869,12.85813641,1916.7,1916.3,5.78399881]
[1688202033766,12.85813641,1916.7,1916.3,5.78082042]
[1688202034607,12.85813641,1916.7,1916.3,0.56248042]
[1688202034907,12.85813641,1916.7,1916.2,10.45360758]
[1688202044580,12.85813641,1916.7,1916.2,13.06293758]
[1688202047980,12.85813641,1916.7,1916.2,12.93320158]
[1688202054078,12.85813641,1916.7,1916.2,10.32387158]
[1688202058226,12.85813641,1916.7,1916.2,12.93320158]
[1688202058428,12.85813641,1916.7,1916.3,1.29332016]
[1688202058627,12.85813641,1916.7,1916.4,5.2181]
[1688202058964,12.85813641,1916.7,1916.3,5.21825]
[1688202062667,12.85813641,1916.7,1916.1,6.70822698]
[1688202062668,12.85813641,1916.7,1916.1,2.48069698]
[1688202062872,14.22013641,1916.7,1916.1,2.48069698]
[1688202063075,1.42201364,1916.6,1916.1,7.28958]
[1688202063395,18.74293,1916.5,1915.9,0.41803352]
[1688202063759,1.36,1916.3,1915.7,7.20152]
[1688202064095,13.04717,1916.2,1915.7,7.20152]
[1688202064447,14.76937,1916.2,1915.7,7.20152]
[1688202065776,14.76937,1916.2,1915.7,12.42154]
[1688202065995,14.76937,1916.2,1915.7,14.081808]
[1688202066212,14.76937,1916.2,1915.7,16.691818]
[1688202067458,14.76937,1916.2,1915.7,14.081808]
[1688202068261,14.76937,1916.2,1915.7,16.691818]
[1688202075047,14.76937,1916.2,1915.7,8.861788]
[1688202075249,16.70815776,1916.2,1915.7,7.20152]
[1688202076525,5.21887,1916.2,1915.8,2.68752184]
[1688202076724,5.21828,1916.4,1915.9,13.04855]
[1688202077803,10.43658,1916.4,1915.9,13.04855]
[1688202079662,5.21771,1916.6,1916.0,4.04952184]
[1688202079869,5.21745,1916.7,1916.1,14.81372218]
[1688202080205,10.43484,1916.7,1916.3,13.04562]
[1688202080851,5.21737,1916.7,1916.3,13.04562]
[1688202081047,10.43474,1916.7,1916.3,13.04562]
[1688202081341,5.21737,1916.7,1916.3,13.04562]
[1688202082176,5.21737,1916.7,1916.3,14.61893418]
[1688202083296,10.43467,1916.7,1916.3,14.61893418]
[1688202083700,5.2173,1916.7,1916.3,14.61893418]
[1688202084094,5.21724,1916.8,1916.3,14.61893418]
[1688202084295,10.43445,1916.8,1916.3,14.61893418]
[1688202085210,10.43445,1916.8,1916.5,5.21779]
[1688202087888,5.21721,1916.8,1916.5,5.21779]
[1688202088293,5.2115563,1916.8,1916.5,5.21779]
[1688202088594,10.4286863,1916.8,1916.5,5.21779]
[1688202089005,5.2115563,1916.8,1916.5,5.21779]
[1688202089209,5.21707,1916.8,1916.5,6.459839]
[1688202089603,5.21707,1916.8,1916.5,11.677679]
[1688202090052,5.21711,1916.8,1916.5,11.677679]
[1688202090553,4.26058,1917.0,1916.5,11.677679]
[1688202090703,5.21706,1916.8,1916.5,11.677679]
[1688202091021,5.21706,1916.8,1916.6,6.3851679]
[1688202091343,1.6523,1917.0,1916.6,1.1677679]
[1688202091546,1.6523,1917.0,1916.6,10.43514]
[1688202091547,5.21679,1916.9,1916.6,10.43514]
[1688202092709,10.43367,1916.9,1916.6,10.43514]
[1688202096247,5.21679,1916.9,1916.6,10.43514]
[1688202097416,10.43358,1916.9,1916.6,10.43514]
[1688202099546,5.21679,1916.9,1916.6,10.43514]
[1688202099751,10.43354,1916.9,1916.6,11.739545]
[1688202103639,10.43354,1916.9,1916.6,10.82252851]
[1688202105625,10.43354,1916.9,1916.6,5.60495851]
[1688202105855,13.04191,1916.9,1916.6,5.60495851]
[1688202110141,10.43354,1916.9,1916.6,8.29248035]
[1688202113751,0.01647759,1917.1,1916.6,16.11883035]
[1688202113752,5.21629,1917.1,1916.6,16.11883035]
[1688202113949,5.21629,1917.1,1916.7,1.61188304]
[1688202114183,10.4325,1917.1,1916.8,10.43394]
[1688202120499,10.43242,1917.1,1916.8,10.43394]
[1688202122878,7.00408,1917.2,1916.8,13.04245]
[1688202123074,7.00408,1917.2,1916.8,14.97787549]
[1688202123361,2.60774,1917.4,1916.9,2.68752184]
[1688202123362,10.431,1917.4,1916.9,2.68752184]
[1688202123666,10.43104,1917.4,1917.0,13.04085]
[1688202123997,10.43104,1917.4,1917.2,5.21593]
[1688202125209,5.21545,1917.4,1917.2,5.21593]
[1688202125705,5.21534,1917.5,1917.2,10.43186]
[1688202125861,10.43062,1917.5,1917.2,10.43186]
[1688202126704,6.94271,1917.6,1917.2,12.00460618]
[1688202126913,7.06035,1917.7,1917.2,14.61256618]
[1688202127081,1.36,1917.8,1917.3,2.68752184]
[1688202127274,5.21415,1917.9,1917.3,6.19742184]
[1688202127474,5.21415,1917.9,1917.4,15.19066218]
[1688202127710,10.42826,1917.9,1917.6,10.42958]
[1688202128469,10.42826,1917.9,1917.6,5.21479]
[1688202128706,10.42826,1917.9,1917.6,10.42964]
[1688202129320,10.42826,1917.9,1917.6,12.00210018]
[1688202132619,6.95136,1918.0,1917.6,14.60952018]
[1688202132825,12.1652,1918.0,1917.6,14.60952018]
[1688202133706,10.4277,1918.0,1917.6,14.60952018]
[1688202133944,10.4277,1918.0,1917.8,5.2143]
[1688202136823,10.4277,1918.0,1917.7,11.88985202]
[1688202141463,10.4277,1918.0,1917.7,10.4289]
[1688202141968,10.4277,1918.0,1917.7,9.4289]
[1688202144546,5.21384,1918.0,1917.7,12.03618]
[1688202147036,5.21376,1918.0,1917.7,12.11642184]
[1688202147279,10.42752,1918.0,1917.7,12.11642184]
[1688202147635,10.42527475,1918.0,1917.7,12.11642184]
[1688202151373,10.42527475,1918.0,1917.7,14.13655302]
[1688202153273,10.42527475,1918.0,1917.7,12.11642184]
[1688202153784,10.42527475,1918.0,1917.7,6.90195184]
[1688202158354,10.42527475,1918.0,1917.7,12.11652184]
[1688202160597,5.21382,1918.0,1917.7,14.72380184]
[1688202160800,5.21382,1918.0,1917.8,6.68653018]
[1688202160963,7.09467,1918.3,1917.8,17.19550202]
[1688202161165,5.21322,1918.2,1917.8,17.19550202]
[1688202161584,5.21322,1918.2,1917.8,18.55750202]
[1688202162784,12.08797,1918.3,1917.8,18.55750202]
[1688202162967,12.08797,1918.3,1918.0,10.4274]
[1688202163168,2.60636,1918.4,1918.0,10.4274]
[1688202163169,5.21275,1918.4,1918.0,10.4274]
[1688202163356,5.21296,1918.3,1918.0,10.4274]
[1688202164794,10.42592,1918.3,1918.0,10.4274]
[1688202165382,14.41086759,1918.3,1917.7,5.2144]
[1688202165589,13.03399,1918.1,1917.7,10.42888]
[1688202165882,5.21362,1918.1,1917.7,10.42888]
[1688202166709,5.21362,1918.1,1917.7,15.72368184]
[1688202166864,5.21362,1918.1,1917.8,2.68752184]
[1688202167213,5.21362,1918.1,1917.9,10.42806]
[1688202167512,5.21333,1918.2,1917.9,10.42806]
[1688202167724,10.42664,1918.2,1917.9,10.42806]
[1688202168094,10.42664,1918.2,1917.9,10.298078]
[1688202171068,10.42664,1918.2,1917.9,11.53575548]
[1688202172563,5.21331,1918.2,1917.9,10.298078]
[1688202172999,10.42662,1918.2,1917.9,10.298078]
[1688202173299,13.03323,1918.2,1917.8,2.68752184]
[1688202173685,13.03323,1918.2,1917.6,2.5384498]
[1688202173894,16.45785076,1918.2,1917.7,2.68752184]
[1688202175200,5.2690304,1918.8,1918.1,1.362]
[1688202175393,7.0571304,1918.8,1918.3,13.03183]
[1688202175592,7.0569504,1918.8,1918.3,15.71935184]
[1688202175905,1.8453304,1918.8,1918.3,15.71935184]
[1688202176105,1.8453304,1918.8,1918.3,17.29128702]
[1688202176406,0.0572304,1918.8,1918.5,10.4247]
[1688202177473,0.0572304,1918.8,1918.5,13.0309]
[1688202178368,0.0572304,1918.8,1918.6,2.68752184]
[1688202178568,0.0572304,1918.8,1918.7,15.63558]
[1688202178870,0.0572304,1918.8,1918.7,20.29061202]
[1688202180478,0.0572304,1918.8,1918.7,17.68468202]
[1688202182280,0.0572304,1918.8,1918.7,28.10768202]
[1688202182840,0.0572304,1918.8,1918.7,15.63486]
[1688202183016,13.0862004,1918.8,1918.7,10.423]
[1688202183593,13.10267799,1918.8,1918.2,10.42613]
[1688202185880,1.362,1918.7,1918.2,10.42613]
[1688202186081,13.0306,1918.6,1918.2,10.42613]
[1688202186381,13.0306,1918.6,1918.2,5.21302]
[1688202186986,13.0306,1918.6,1917.9,5.60688]
[1688202186987,14.3786,1918.6,1917.9,5.60688]
[1688202187234,14.3786,1918.6,1918.1,10.42696]
[1688202187235,14.39507759,1918.6,1918.1,10.42696]
[1688202187789,1.348,1918.5,1918.1,10.42696]
[1688202188131,5.21273,1918.4,1918.1,10.42696]
[1688202188434,0.01647759,1918.3,1917.5,2.6075]
[1688202188630,0.01647759,1918.3,1917.7,5.21447]
[1688202188631,13.03348,1918.2,1917.7,5.21447]
[1688202188791,13.03348,1918.2,1917.8,0.521447]
[1688202188997,13.03348,1918.2,1917.8,5.735647]
[1688202189189,13.03348,1918.2,1917.8,10.949947]
[1688202189425,10.42686,1918.2,1917.8,10.949947]
[1688202191891,13.03347,1918.2,1917.8,0.521447]
[1688202192132,14.39547,1918.2,1917.8,5.21428]
[1688202193510,1.36,1918.1,1917.4,6.64538671]
[1688202193705,18.2469,1918.2,1917.4,1.03774671]
[1688202193903,13.03515,1917.9,1917.4,6.25306671]
[1688202194108,13.03515,1917.9,1917.4,11.46845671]
[1688202194724,13.03515,1917.9,1917.4,11.05045218]
[1688202194918,13.03515,1917.9,1917.4,13.65814218]
[1688202195349,13.03515,1917.9,1917.4,11.05045218]
[1688202195559,13.03515,1917.9,1917.4,13.65814218]
[1688202197536,10.42812,1917.9,1917.4,13.65814218]
[1688202198742,13.03513,1917.9,1917.4,13.65814218]
[1688202201156,5.21267,1918.4,1917.5,4.05333606]
[1688202201324,5.21267,1918.4,1917.7,10.42887]
[1688202201325,10.4272,1918.1,1917.7,10.42887]
[1688202204159,3.1427,1918.3,1917.8,2.68752184]
[1688202204459,3.1427,1918.3,1917.9,10.42796]
[1688202204460,5.2136,1918.1,1917.9,10.42796]
[1688202205400,5.2136,1918.1,1917.9,12.00022018]
[1688202205919,5.21298,1918.3,1917.9,14.60723018]
[1688202207750,10.42596,1918.3,1918.0,2.68752184]
[1688202207949,10.42596,1918.3,1918.0,7.90120184]
[1688202210136,10.42596,1918.3,1918.0,2.68752184]
[1688202210860,14.335659,1918.3,1917.6,10.07449]
[1688202211061,14.335659,1918.3,1917.6,2.68752184]
[1688202211771,16.040959,1918.3,1917.6,7.90236184]
[1688202214446,16.05743659,1918.3,1917.6,7.90236184]
[1688202214650,1.60574366,1918.2,1917.6,7.90236184]
[1688202214879,13.03425,1918.1,1917.6,13.11721184]
[1688202216481,13.03425,1918.1,1917.6,15.72463184]
[1688202220487,1.72177759,1918.3,1917.7,2.68752184]
[1688202220668,10.42689,1918.2,1917.8,13.0353]
[1688202220978,5.21332,1918.2,1917.8,17.29510402]
[1688202222676,10.42664,1918.2,1917.8,17.29510402]
[1688202224580,10.42664,1918.2,1917.9,2.68752184]
[1688202224581,5.21332,1918.2,1917.9,2.68752184]
[1688202224744,5.21332,1918.2,1918.0,5.21376]
[1688202225477,10.42654,1918.2,1917.9,7.90138184]
[1688202225646,10.42654,1918.2,1917.9,9.63087624]
[1688202229855,13.03315,1918.2,1917.7,10.42901]
[1688202230046,13.03315,1918.2,1917.7,5.21445]
[1688202230555,13.03315,1918.2,1917.8,2.68752184]
[1688202230755,13.03315,1918.2,1917.8,13.11594184]
[1688202230959,13.03315,1918.2,1917.9,1.31159418]
[1688202231188,13.03315,1918.2,1917.8,2.68752184]
[1688202231748,13.03315,1918.2,1917.8,7.90174184]
[1688202232481,13.03315,1918.2,1917.8,2.68752184]
[1688202232671,13.03315,1918.2,1917.7,6.75224]
[1688202232876,13.03315,1918.2,1917.7,14.65433184]
[1688202233061,13.03315,1918.2,1917.8,1.46543318]
[1688202233383,13.03315,1918.2,1917.8,6.67956318]
[1688202237174,13.03315,1918.2,1917.7,11.46056184]
[1688202238279,13.03315,1918.2,1917.6,5.63955004]
[1688202238484,14.38215,1918.2,1917.6,5.63955004]
[1688202238780,14.38215,1918.2,1917.6,13.46182004]
[1688202241285,6.56222,1918.2,1917.6,16.14934188]
[1688202241453,6.56222,1918.2,1917.7,1.61493419]
[1688202241654,10.42644,1918.2,1917.8,5.21417]
[1688202242488,13.03305,1918.2,1917.8,10.42847]
[1688202243789,10.42644,1918.2,1917.8,10.42847]
[1688202243983,10.42644,1918.2,1917.8,11.89353842]
[1688202245385,5.21322,1918.2,1917.8,14.50068842]
[1688202245690,13.03305,1918.2,1917.8,11.89353842]
[1688202245885,13.03305,1918.2,1917.8,5.21417]
[1688202250704,13.03305,1918.2,1917.7,12.04382419]
[1688202250912,13.03305,1918.2,1917.6,0.42478004]
[1688202251273,13.03305,1918.2,1917.5,2.1303]
[1688202251473,13.03305,1918.2,1917.5,13.45224403]
[1688202251673,3.085905,1918.1,1917.5,15.51636565]
[1688202251902,13.03491,1918.0,1917.5,15.51636565]
[1688202252696,13.03491,1918.0,1917.5,20.73148565]
[1688202253704,13.03491,1918.0,1917.5,23.33904565]
[1688202258916,10.42796,1918.0,1917.5,23.33904565]
[1688202260809,10.42796,1918.0,1917.5,24.69904565]
[1688202260992,10.42796,1918.0,1917.6,2.46990456]
[1688202261194,10.42796,1918.0,1917.7,10.42904]
[1688202262073,5.21398,1918.0,1917.7,10.42904]
[1688202262280,7.13995,1918.2,1917.7,13.03632]
[1688202263094,12.35343,1918.2,1917.7,13.03632]
[1688202263931,10.42683,1918.2,1917.7,17.6713003]
[1688202264215,6.98851,1918.3,1917.9,5.21394]
[1688202264420,5.21326,1918.2,1917.9,5.21394]
[1688202264918,10.42652,1918.2,1917.9,5.21394]
[1688202266418,10.42652,1918.2,1917.8,7.90167184]
[1688202266612,13.03313,1918.2,1917.8,14.65895287]
[1688202268047,13.03313,1918.2,1917.8,9.44479287]
[1688202270919,13.03313,1918.2,1917.8,14.65909287]
[1688202271238,1.357,1918.5,1917.8,14.65909287]
[1688202271443,5.21215,1918.6,1918.2,1.362]
[1688202271628,4.5545804,1918.8,1918.4,1.352]
[1688202271629,0.0572304,1918.8,1918.4,1.352]
[1688202271920,5.2688404,1918.8,1918.4,5.21247]
[1688202272091,5.2688404,1918.8,1918.4,10.42514]
[1688202272286,0.0572304,1918.8,1918.6,5.21213]
[1688202272490,0.0572304,1918.8,1918.6,13.11178184]
[1688202272803,0.0572304,1918.8,1918.6,7.89965184]
[1688202273418,5.2688704,1918.8,1918.6,7.89965184]
[1688202275724,5.2688704,1918.8,1918.7,10.424]
[1688202276623,10.4805104,1918.8,1918.7,10.424]
[1688202276826,5.2688704,1918.8,1918.7,10.424]
[1688202277218,0.0572304,1918.8,1918.7,10.424]
[1688202277633,0.0572304,1918.8,1918.7,17.87976817]
[1688202278010,0.0572304,1918.8,1918.7,23.09162817]
[1688202279043,0.0572304,1918.8,1918.7,10.424]
[1688202279253,5.2688204,1918.8,1918.7,10.424]
[1688202280013,0.0572304,1918.8,1918.7,10.424]
[1688202280222,0.0572304,1918.8,1918.7,15.63586]
[1688202282751,5.2688204,1918.8,1918.7,10.424]
[1688202282960,10.4804104,1918.8,1918.7,10.424]
[1688202283602,5.2688204,1918.8,1918.7,10.424]
[1688202283937,5.2688204,1918.8,1918.7,15.63586]
[1688202284824,10.4804104,1918.8,1918.7,10.424]
[1688202285333,14.39480844,1918.8,1918.7,10.424]
[1688202288134,14.39480844,1918.8,1918.7,10.294152]
[1688202297292,14.39480844,1918.8,1918.2,7.52661]
[1688202297293,1.43948084,1918.7,1917.8,1.04961789]
[1688202297499,0.5,1918.2,1917.2,1.9861]
[1688202297800,15.64208,1917.9,1917.1,0.12809444]
[1688202298010,8.7454492,1917.8,1917.1,0.12809444]
[1688202298157,8.7454492,1917.8,1916.8,4.12545371]
[1688202298158,15.6446,1917.6,1916.8,8.79598]
[1688202298354,1.349,1917.5,1916.8,8.79598]
[1688202298652,13.03915,1917.3,1916.8,3.5792]
[1688202298966,13.03915,1917.3,1916.6,4.39825371]
[1688202299190,1.36,1917.1,1916.6,0.83102095]
[1688202299482,5.21653,1917.0,1916.6,0.12784914]
[1688202299660,6.57636,1917.1,1916.6,5.34536914]
[1688202299862,5.21581,1917.3,1916.6,14.52571914]
[1688202300096,10.4317,1917.3,1916.6,14.52571914]
[1688202300309,5.21581,1917.3,1916.6,14.52571914]
[1688202300452,10.43165,1917.3,1916.8,10.43373]
[1688202300879,10.43165,1917.3,1916.8,5.21681]
[1688202301586,10.43165,1917.3,1916.8,10.43383]
[1688202301587,13.03948,1917.3,1916.8,10.43383]
[1688202301780,13.03948,1917.3,1916.8,5.21681]
[1688202302370,13.03948,1917.3,1916.8,7.90433184]
[1688202302693,13.03948,1917.3,1916.9,0.79043318]
[1688202306821,13.03948,1917.3,1917.0,2.68752184]
[1688202306822,5.21581,1917.3,1917.0,2.68752184]
[1688202307016,5.21581,1917.3,1917.1,5.21621]
[1688202307311,5.21581,1917.3,1917.1,7.90373184]
[1688202307498,5.21581,1917.3,1917.2,0.79037318]
[1688202311179,10.43147,1917.3,1917.2,0.79037318]
[1688202311991,5.21566,1917.3,1917.2,0.79037318]
[1688202314211,5.21529,1917.5,1917.2,8.69382502]
[1688202314530,10.43058,1917.5,1917.2,13.90975502]
[1688202314835,5.21529,1917.5,1917.3,1.3909755]
[1688202315038,5.21529,1917.5,1917.3,6.6066255]
[1688202315931,10.43005,1917.6,1917.3,6.6066255]
[1688202316221,2.60709,1917.9,1917.3,14.50980734]
[1688202316387,10.42985,1917.6,1917.3,14.50980734]
[1688202316586,10.42985,1917.6,1917.4,1.45098073]
[1688202318298,13.03727,1917.6,1917.1,1.36]
[1688202318522,13.03727,1917.6,1916.9,9.27978]
[1688202318523,13.03727,1917.6,1916.9,8.0335]
[1688202318824,13.03727,1917.6,1917.0,2.68752184]
[1688202319128,14.39927,1917.6,1917.0,2.68752184]
[1688202323191,14.39927,1917.6,1917.0,2.64359141]
[1688202323499,14.39927,1917.6,1917.0,3.61690861]
[1688202323815,14.39927,1917.6,1917.0,0.9733172]
[1688202324020,14.39927,1917.6,1916.9,4.08958058]
[1688202324219,14.39927,1917.6,1917.0,5.21648]
[1688202325111,14.39927,1917.6,1917.0,10.43296]
[1688202325701,14.39927,1917.6,1917.0,5.21648]
[1688202326520,1.349,1917.5,1917.0,5.21648]
[1688202326705,1.349,1917.5,1916.9,9.30617058]
[1688202326706,13.03882,1917.4,1916.9,0.41808058]
[1688202327099,13.03882,1917.4,1916.7,17.0465]
[1688202327100,13.03882,1917.4,1916.8,3.0]
[1688202327334,13.03882,1917.4,1916.8,10.90447184]
[1688202327542,13.05529759,1917.4,1916.8,10.90447184]
[1688202330041,13.05529759,1917.4,1916.8,7.90447184]
[1688202330207,15.05517705,1917.4,1916.8,13.12149184]
[1688202330538,15.05517705,1917.4,1916.8,7.90447184]
[1688202332944,15.05517705,1917.4,1916.8,13.12149184]
[1688202339058,15.05517705,1917.4,1916.7,2.35641854]
[1688202339215,0.48,1917.3,1916.7,0.41961854]
[1688202339414,15.64844,1917.2,1916.7,0.41961854]
[1688202339616,15.64844,1917.2,1916.5,9.9696239]
[1688202339813,15.64844,1917.2,1916.5,12.65728574]
[1688202340042,15.64844,1917.2,1916.5,7.43948574]
[1688202340346,1.564844,1917.1,1916.5,7.43948574]
[1688202340548,13.04175,1917.0,1916.5,12.65729574]
[1688202340947,13.04175,1917.0,1916.5,18.29537545]
[1688202342149,13.04175,1917.0,1916.6,1.45288144]
[1688202342514,13.04175,1917.0,1916.6,6.67044144]
[1688202342715,13.04175,1917.0,1916.7,0.90662773]
[1688202345154,13.04175,1917.0,1916.6,10.43513]
[1688202345342,13.04175,1917.0,1916.6,5.21756]
[1688202346052,13.04175,1917.0,1916.6,7.10168192]
[1688202346257,5.21635,1917.1,1916.7,3.5941513]
[1688202346421,5.21652,1917.0,1916.7,7.90464184]
[1688202347355,10.43304,1917.0,1916.7,7.90464184]
[1688202347659,10.43304,1917.0,1916.7,9.54147422]
[1688202350163,5.21652,1917.0,1916.7,14.75877422]
[1688202353232,5.21652,1917.0,1916.7,17.36742422]
[1688202354736,10.43274,1917.1,1916.7,17.36742422]
[1688202358769,10.43274,1917.1,1916.7,17.78171793]
[1688202363520,10.43274,1917.1,1916.8,0.90657147]
[1688202363666,10.43218,1917.2,1916.9,5.21675]
[1688202364007,5.21609,1917.2,1916.9,10.4335]
[1688202366767,5.21609,1917.2,1916.9,13.04187]
[1688202369921,10.43213,1917.2,1916.9,5.21675]
[1688202370064,11.736127,1917.2,1916.9,5.21675]
[1688202370270,11.736127,1917.2,1916.8,5.2169]
[1688202370732,10.43213,1917.2,1916.8,5.2169]
[1688202371403,10.43213,1917.2,1916.9,0.90654778]
[1688202371580,10.43213,1917.2,1916.7,16.10191926]
[1688202371780,10.43213,1917.2,1916.8,0.906548]
[1688202372085,10.43213,1917.2,1916.8,6.123538]
[1688202372273,10.43213,1917.2,1916.9,0.906548]
[1688202374901,10.43213,1917.2,1916.8,10.43392]
[1688202375218,10.43213,1917.2,1916.9,0.90655097]
[1688202375389,10.43213,1917.2,1916.8,10.43392]
[1688202375707,10.43213,1917.2,1916.9,0.90655231]
[1688202376208,10.43213,1917.2,1916.9,6.12317231]
[1688202376417,10.43213,1917.2,1916.9,5.21662]
[1688202380417,10.43213,1917.2,1916.9,10.43337]
[1688202381711,5.23205759,1917.4,1916.9,17.08807421]
[1688202381877,5.21521,1917.5,1917.0,2.68752184]
[1688202382081,10.4305,1917.5,1917.2,10.43166]
[1688202386612,2.60719,1917.8,1917.2,13.11918184]
[1688202386814,6.64681509,1918.3,1917.2,13.11918184]
[1688202386815,0.13270656,1918.3,1917.4,2.68752184]
[1688202387017,5.21385,1918.0,1917.6,10.42932]
[1688202387204,5.21385,1918.0,1917.7,2.68752184]
[1688202387394,5.21385,1918.0,1917.8,10.4286]
[1688202387595,5.21385,1918.0,1917.5,1.7181]
[1688202387905,13.03449,1918.0,1917.6,5.21468]
[1688202388286,13.03449,1918.0,1917.6,10.42953]
[1688202388687,13.03449,1918.0,1917.6,5.21468]
[1688202388993,14.488499,1918.0,1917.6,10.42953]
[1688202389382,11.881619,1918.0,1917.6,10.42953]
[1688202389589,10.42761,1918.0,1917.6,10.42953]
[1688202389787,5.21376,1918.0,1917.6,10.42953]
[1688202389983,10.42752,1918.0,1917.6,10.42953]
[1688202390211,5.21376,1918.0,1917.6,10.42953]
[1688202390402,5.21376,1918.0,1917.6,13.03695]
[1688202390701,10.42752,1918.0,1917.6,14.737598]
[1688202393287,5.21376,1918.0,1917.6,14.737598]
[1688202394925,10.42752,1918.0,1917.6,14.737598]
[1688202395118,10.41232,1918.0,1917.6,14.737598]
[1688202397639,11.9329,1918.1,1917.6,14.737598]
[1688202397854,11.9329,1918.1,1917.7,1.4737598]
[1688202397855,6.71922,1918.1,1917.7,1.4737598]
[1688202398143,10.42727,1918.1,1917.8,5.21425]
[1688202399132,10.42727,1918.1,1917.8,10.42855]
[1688202402839,13.03401,1918.1,1917.8,5.21425]
[1688202405024,13.03401,1918.1,1917.7,5.2144]
[1688202405216,14.33905876,1918.1,1917.7,5.2144]
[1688202406756,14.33905876,1918.1,1917.7,10.42897]
[1688202407752,14.33905876,1918.1,1917.7,5.2144]
[1688202408280,5.21403,1917.9,1917.7,5.2144]
[1688202410334,10.42806,1917.9,1917.7,5.2144]
[1688202411230,0.129715,1917.8,1917.7,5.2144]
[1688202411431,5.344015,1917.8,1917.7,6.421258]
[1688202412862,5.344015,1917.8,1917.7,1.206858]
[1688202413232,10.558315,1917.8,1917.6,5.21468]
[1688202414063,0.129715,1917.8,1917.6,5.21468]
[1688202414268,5.344035,1917.8,1917.6,10.42953]
[1688202415130,5.344035,1917.8,1917.6,5.21468]
[1688202416340,5.344035,1917.8,1917.5,5.21495]
[1688202416665,10.558355,1917.8,1917.5,5.21495]
[1688202418144,10.4781185,1917.8,1917.5,5.21495]
[1688202421764,10.4781185,1917.8,1917.4,3.41301678]
[1688202421765,13.0852685,1917.8,1917.4,3.41301678]
[1688202421970,13.0852685,1917.8,1917.4,8.62838678]
[1688202422262,13.0852685,1917.8,1917.4,13.84377678]
[1688202434074,0.0494785,1917.8,1917.4,19.13898862]
[1688202434281,0.0494785,1917.8,1917.5,1.91389886]
[1688202434601,5.2638285,1917.8,1917.6,5.21485]
[1688202435855,13.0853285,1917.8,1917.4,0.41301678]
[1688202436063,13.0853285,1917.8,1917.3,0.12820502]
[1688202436258,14.65457435,1917.8,1917.3,0.12820502]
[1688202436891,14.65457435,1917.8,1917.3,5.34378502]
[1688202438995,14.65457435,1917.8,1917.3,10.55944502]
[1688202439564,14.65457435,1917.8,1917.3,5.34378502]
[1688202440196,14.65457435,1917.8,1917.3,10.55944502]
[1688202440902,14.65457435,1917.8,1917.3,12.20216335]
[1688202442875,14.65457435,1917.8,1917.3,6.98650335]
[1688202443866,13.0853285,1917.8,1917.3,6.98650335]
[1688202444490,13.08173786,1917.8,1917.3,6.98650335]
[1688202444968,13.08173786,1917.8,1917.3,8.71460335]
[1688202445164,13.08173786,1917.8,1917.3,5.34378502]
[1688202445474,1.348,1917.6,1917.2,0.41208554]
[1688202445685,13.03792,1917.5,1917.2,0.41208554]
[1688202445879,14.341712,1917.5,1917.0,14.84027371]
[1688202446072,14.341712,1917.5,1917.1,0.90645966]
[1688202446073,13.03792,1917.5,1917.1,0.90645966]
[1688202446287,13.03792,1917.5,1917.0,9.07764]
[1688202446467,13.03792,1917.5,1917.0,14.29401]
[1688202447000,13.03792,1917.5,1917.0,9.07764]
[1688202447363,13.03792,1917.5,1917.0,14.29412]
[1688202447568,13.03792,1917.5,1917.0,16.33899237]
[1688202448486,13.03792,1917.5,1917.0,16.76444483]